Workbook

Sheet Voorblad
N24: Voorbeeld materiaal - Urenregistratie
N33: © 2015, G-Info/G. Verbruggen
N34: www.ginfo.nl

Sheet Invoer
A1: Urenverantwoording
A3: Datum | B3: Dag | C3: Begin1 | D3: Eind1 | E3: Begin2 | F3: Eind2 | G3: UrenMin | H3: Uren | I3: Bijzonderheden
A4: 2015-04-01 | B4: =A4 -> 2015-04-01 | C4: 08:10:00 | D4: 17:15:00 | G4: =IF(D4="",0,D4-C4)+IF(F4="",0,F4-E4) -> 09:05:00 | H4: =Uren[[#This Row],[UrenMin]]*24 -> 9.083333333
A5: =+A4+1 -> 2015-04-02 | B5: 2015-04-02 | C5: 08:05:00 | D5: 12:30:00 | E5: 13:00:00 | F5: 17:20:00 | G5: 08:45:00 | H5: =Uren[[#This Row],[UrenMin]]*24 -> 8.75
A6: =+A5+1 -> 2015-04-03 | B6: 2015-04-03 | C6: 08:10:00 | D6: 12:30:00 | E6: 13:05:00 | F6: 17:35:00 | G6: 08:50:00 | H6: =Uren[[#This Row],[UrenMin]]*24 -> 8.833333333
A7: 2015-04-04 | B7: 2015-04-04 | G7: 00:00:00 | H7: =Uren[[#This Row],[UrenMin]]*24 -> 0
A8: 2015-04-05 | B8: 2015-04-05 | G8: 00:00:00 | H8: =Uren[[#This Row],[UrenMin]]*24 -> 0
A9: 2015-04-06 | B9: 2015-04-06 | C9: 08:15:00 | D9: 12:40:00 | E9: 13:20:00 | F9: 17:35:00 | G9: 08:40:00 | H9: =Uren[[#This Row],[UrenMin]]*24 -> 8.666666667 | I9: Project2
A10: 2015-04-07 | B10: 2015-04-07 | C10: 08:05:00 | D10: 17:05:00 | G10: 09:00:00 | H10: =Uren[[#This Row],[UrenMin]]*24 -> 9 | I10: Project2
A11: 2015-04-08 | B11: 2015-04-08 | C11: 08:10:00 | D11: 12:35:00 | E11: 13:20:00 | F11: 17:10:00 | G11: 08:15:00 | H11: =Uren[[#This Row],[UrenMin]]*24 -> 8.25 | I11: Project2
A12: 2015-04-09 | B12: 2015-04-09 | C12: 08:10:00 | D12: 12:30:00 | E12: 13:15:00 | F12: 17:00:00 | G12: 08:05:00 | H12: =Uren[[#This Row],[UrenMin]]*24 -> 8.083333333
A13: 2015-04-10 | B13: 2015-04-10 | C13: 08:10:00 | D13: 12:30:00 | E13: 13:10:00 | F13: 17:50:00 | G13: 09:00:00 | H13: =Uren[[#This Row],[UrenMin]]*24 -> 9 | I13: 1 uur Project2
A14: 2015-04-11 | B14: 2015-04-11 | G14: 00:00:00 | H14: =Uren[[#This Row],[UrenMin]]*24 -> 0
A15: 2015-04-12 | B15: 2015-04-12 | G15: 00:00:00 | H15: =Uren[[#This Row],[UrenMin]]*24 -> 0
A16: 2015-04-13 | B16: 2015-04-13 | C16: 08:05:00 | D16: 17:45:00 | G16: 09:40:00 | H16: =Uren[[#This Row],[UrenMin]]*24 -> 9.666666667
A17: 2015-04-14 | B17: 2015-04-14 | C17: 08:05:00 | D17: 16:50:00 | G17: 08:45:00 | H17: =Uren[[#This Row],[UrenMin]]*24 -> 8.75
A18: 2015-04-15 | B18: 2015-04-15 | C18: 08:00:00 | D18: 12:35:00 | E18: 13:15:00 | F18: 17:20:00 | G18: 08:40:00 | H18: =Uren[[#This Row],[UrenMin]]*24 -> 8.666666667
A19: 2015-04-16 | B19: 2015-04-16 | C19: 08:10:00 | D19: 12:45:00 | E19: 13:30:00 | F19: 17:30:00 | G19: 08:35:00 | H19: =Uren[[#This Row],[UrenMin]]*24 -> 8.583333333
A20: 2015-04-17 | B20: 2015-04-17 | C20: 08:05:00 | D20: 17:05:00 | G20: 09:00:00 | H20: =Uren[[#This Row],[UrenMin]]*24 -> 9
A21: 2015-04-18 | B21: 2015-04-18 | G21: 00:00:00 | H21: =Uren[[#This Row],[UrenMin]]*24 -> 0
A22: 2015-04-19 | B22: 2015-04-19 | G22: 00:00:00 | H22: =Uren[[#This Row],[UrenMin]]*24 -> 0
A23: 2015-04-20 | B23: 2015-04-20 | C23: 08:15:00 | D23: 12:15:00 | E23: 13:00:00 | F23: 17:15:00 | G23: 08:15:00 | H23: =Uren[[#This Row],[UrenMin]]*24 -> 8.25
A24: 2015-04-21 | B24: 2015-04-21 | C24: 08:05:00 | D24: 12:30:00 | E24: 13:00:00 | F24: 17:20:00 | G24: 08:45:00 | H24: =Uren[[#This Row],[UrenMin]]*24 -> 8.75
A25: 2015-04-22 | B25: 2015-04-22 | C25: 08:00:00 | D25: 17:35:00 | G25: 09:35:00 | H25: =Uren[[#This Row],[UrenMin]]*24 -> 9.583333333
A26: 2015-04-23 | B26: 2015-04-23 | C26: 08:10:00 | D26: 12:40:00 | E26: 13:10:00 | F26: 17:50:00 | G26: 09:10:00 | H26: =Uren[[#This Row],[UrenMin]]*24 -> 9.166666667
A27: 2015-04-24 | B27: 2015-04-24 | G27: 00:00:00 | H27: =Uren[[#This Row],[UrenMin]]*24 -> 0
A28: 2015-04-25 | B28: 2015-04-25 | G28: 00:00:00 | H28: =Uren[[#This Row],[UrenMin]]*24 -> 0
A29: 2015-04-26 | B29: 2015-04-26 | G29: 00:00:00 | H29: =Uren[[#This Row],[UrenMin]]*24 -> 0
A30: 2015-04-27 | B30: 2015-04-27 | G30: 00:00:00 | H30: =Uren[[#This Row],[UrenMin]]*24 -> 0 | I30: Koningsdag
A31: 2015-04-28 | B31: 2015-04-28 | C31: 08:05:00 | D31: 12:30:00 | E31: 13:00:00 | F31: 17:20:00 | G31: 08:45:00 | H31: =Uren[[#This Row],[UrenMin]]*24 -> 8.75
A32: 2015-04-29 | B32: 2015-04-29 | C32: 08:15:00 | D32: 12:15:00 | E32: 13:00:00 | F32: 17:15:00 | G32: 08:15:00 | H32: =Uren[[#This Row],[UrenMin]]*24 -> 8.25
A33: 2015-04-30 | B33: 2015-04-30 | C33: 08:10:00 | D33: 12:45:00 | E33: 13:15:00 | F33: 17:45:00 | G33: 09:05:00 | H33: =Uren[[#This Row],[UrenMin]]*24 -> 9.083333333
A34: 2015-05-01 | B34: 2015-05-01 | G34: 00:00:00 | H34: =Uren[[#This Row],[UrenMin]]*24 -> 0 | I34: lang weekend
A35: 2015-05-02 | B35: 2015-05-02 | G35: 00:00:00 | H35: =Uren[[#This Row],[UrenMin]]*24 -> 0
A36: 2015-05-03 | B36: 2015-05-03 | G36: 00:00:00 | H36: =Uren[[#This Row],[UrenMin]]*24 -> 0
A37: 2015-05-04 | B37: 2015-05-04 | G37: 00:00:00 | H37: =Uren[[#This Row],[UrenMin]]*24 -> 0 | I37: lang weekend
A38: 2015-05-05 | B38: 2015-05-05 | G38: 00:00:00 | H38: =Uren[[#This Row],[UrenMin]]*24 -> 0 | I38: bevrijdingsdag
A39: 2015-05-06 | B39: 2015-05-06 | C39: 08:10:00 | D39: 12:40:00 | E39: 13:00:00 | F39: 17:35:00 | G39: 09:05:00 | H39: =Uren[[#This Row],[UrenMin]]*24 -> 9.083333333
A40: 2015-05-07 | B40: 2015-05-07 | C40: 08:05:00 | D40: 12:30:00 | E40: 13:00:00 | F40: 17:20:00 | G40: 08:45:00 | H40: =Uren[[#This Row],[UrenMin]]*24 -> 8.75
A41: 2015-05-08 | B41: 2015-05-08 | C41: 08:00:00 | D41: 17:35:00 | G41: 09:35:00 | H41: =Uren[[#This Row],[UrenMin]]*24 -> 9.583333333
A42: 2015-05-09 | B42: 2015-05-09 | G42: 00:00:00 | H42: =Uren[[#This Row],[UrenMin]]*24 -> 0
A43: 2015-05-10 | B43: 2015-05-10 | G43: 00:00:00 | H43: =Uren[[#This Row],[UrenMin]]*24 -> 0
A44: 2015-05-11 | B44: 2015-05-11 | G44: 00:00:00 | H44: =Uren[[#This Row],[UrenMin]]*24 -> 0
A45: 2015-05-12 | B45: 2015-05-12 | G45: 00:00:00 | H45: =Uren[[#This Row],[UrenMin]]*24 -> 0
A46: 2015-05-13 | B46: 2015-05-13 | G46: 00:00:00 | H46: =Uren[[#This Row],[UrenMin]]*24 -> 0
A47: 2015-05-14 | B47: 2015-05-14 | G47: 00:00:00 | H47: =Uren[[#This Row],[UrenMin]]*24 -> 0

Sheet MndOvz
B2: Maandelijkse urenrapportage
B4: Naam: | D4: Gijs Verbruggen
B5: Maand: | D5: 2015-04-01
B6: Klant: | D6: G-Info
B9: Dag | D9: Van1 | E9: Tot1 | F9: Van2 | G9: Tot2 | H9: Gewerkte uren | J9: Bijzonderheden
D10: 3 | E10: 4 | F10: 5 | G10: 6 | H10: 7 | I10: 8 | J10: 9
B11: 1 | C11: =$D$5+B11-1 -> 2015-04-01 | D11: =IFERROR(INDEX(Uren[],MATCH($C11,Uren[Datum],0),D$10),"") -> 08:10:00 | E11: =IFERROR(INDEX(Uren[],MATCH($C11,Uren[Datum],0),E$10),"") -> 17:15:00 | F11: =IFERROR(INDEX(Uren[],MATCH($C11,Uren[Datum],0),F$10),"") -> 00:00:00 | G11: =IFERROR(INDEX(Uren[],MATCH($C11,Uren[Datum],0),G$10),"") -> 00:00:00 | H11: =IFERROR(INDEX(Uren[],MATCH($C11,Uren[Datum],0),H$10),"") -> 09:05:00 | I11: =IFERROR(INDEX(Uren[],MATCH($C11,Uren[Datum],0),I$10),"") -> 9.083333333 | J11: =IFERROR(INDEX(Uren[],MATCH($C11,Uren[Datum],0),J$10),"") -> 0
B12: 2 | C12: =IF(MONTH($D$5+B12-1)=MONTH($D$5),$D$5+B12-1,"") -> 2015-04-02 | D12: =IFERROR(INDEX(Uren[],MATCH($C12,Uren[Datum],0),D$10),"") -> 08:05:00 | E12: =IFERROR(INDEX(Uren[],MATCH($C12,Uren[Datum],0),E$10),"") -> 12:30:00 | F12: =IFERROR(INDEX(Uren[],MATCH($C12,Uren[Datum],0),F$10),"") -> 13:00:00 | G12: =IFERROR(INDEX(Uren[],MATCH($C12,Uren[Datum],0),G$10),"") -> 17:20:00 | H12: =IFERROR(INDEX(Uren[],MATCH($C12,Uren[Datum],0),H$10),"") -> 08:45:00 | I12: =IFERROR(INDEX(Uren[],MATCH($C12,Uren[Datum],0),I$10),"") -> 8.75 | J12: =IFERROR(INDEX(Uren[],MATCH($C12,Uren[Datum],0),J$10),"") -> 0
B13: 3 | C13: 2015-04-03 | D13: =IFERROR(INDEX(Uren[],MATCH($C13,Uren[Datum],0),D$10),"") -> 08:10:00 | E13: =IFERROR(INDEX(Uren[],MATCH($C13,Uren[Datum],0),E$10),"") -> 12:30:00 | F13: =IFERROR(INDEX(Uren[],MATCH($C13,Uren[Datum],0),F$10),"") -> 13:05:00 | G13: =IFERROR(INDEX(Uren[],MATCH($C13,Uren[Datum],0),G$10),"") -> 17:35:00 | H13: =IFERROR(INDEX(Uren[],MATCH($C13,Uren[Datum],0),H$10),"") -> 08:50:00 | I13: =IFERROR(INDEX(Uren[],MATCH($C13,Uren[Datum],0),I$10),"") -> 8.833333333 | J13: =IFERROR(INDEX(Uren[],MATCH($C13,Uren[Datum],0),J$10),"") -> 0
B14: 4 | C14: 2015-04-04 | D14: =IFERROR(INDEX(Uren[],MATCH($C14,Uren[Datum],0),D$10),"") -> 00:00:00 | E14: =IFERROR(INDEX(Uren[],MATCH($C14,Uren[Datum],0),E$10),"") -> 00:00:00 | F14: =IFERROR(INDEX(Uren[],MATCH($C14,Uren[Datum],0),F$10),"") -> 00:00:00 | G14: =IFERROR(INDEX(Uren[],MATCH($C14,Uren[Datum],0),G$10),"") -> 00:00:00 | H14: =IFERROR(INDEX(Uren[],MATCH($C14,Uren[Datum],0),H$10),"") -> 00:00:00 | I14: =IFERROR(INDEX(Uren[],MATCH($C14,Uren[Datum],0),I$10),"") -> 0 | J14: =IFERROR(INDEX(Uren[],MATCH($C14,Uren[Datum],0),J$10),"") -> 0
B15: 5 | C15: 2015-04-05 | D15: =IFERROR(INDEX(Uren[],MATCH($C15,Uren[Datum],0),D$10),"") -> 00:00:00 | E15: =IFERROR(INDEX(Uren[],MATCH($C15,Uren[Datum],0),E$10),"") -> 00:00:00 | F15: =IFERROR(INDEX(Uren[],MATCH($C15,Uren[Datum],0),F$10),"") -> 00:00:00 | G15: =IFERROR(INDEX(Uren[],MATCH($C15,Uren[Datum],0),G$10),"") -> 00:00:00 | H15: =IFERROR(INDEX(Uren[],MATCH($C15,Uren[Datum],0),H$10),"") -> 00:00:00 | I15: =IFERROR(INDEX(Uren[],MATCH($C15,Uren[Datum],0),I$10),"") -> 0 | J15: =IFERROR(INDEX(Uren[],MATCH($C15,Uren[Datum],0),J$10),"") -> 0
B16: 6 | C16: 2015-04-06 | D16: =IFERROR(INDEX(Uren[],MATCH($C16,Uren[Datum],0),D$10),"") -> 08:15:00 | E16: =IFERROR(INDEX(Uren[],MATCH($C16,Uren[Datum],0),E$10),"") -> 12:40:00 | F16: =IFERROR(INDEX(Uren[],MATCH($C16,Uren[Datum],0),F$10),"") -> 13:20:00 | G16: =IFERROR(INDEX(Uren[],MATCH($C16,Uren[Datum],0),G$10),"") -> 17:35:00 | H16: =IFERROR(INDEX(Uren[],MATCH($C16,Uren[Datum],0),H$10),"") -> 08:40:00 | I16: =IFERROR(INDEX(Uren[],MATCH($C16,Uren[Datum],0),I$10),"") -> 8.666666667 | J16: =IFERROR(INDEX(Uren[],MATCH($C16,Uren[Datum],0),J$10),"") -> Project2
B17: 7 | C17: 2015-04-07 | D17: =IFERROR(INDEX(Uren[],MATCH($C17,Uren[Datum],0),D$10),"") -> 08:05:00 | E17: =IFERROR(INDEX(Uren[],MATCH($C17,Uren[Datum],0),E$10),"") -> 17:05:00 | F17: =IFERROR(INDEX(Uren[],MATCH($C17,Uren[Datum],0),F$10),"") -> 00:00:00 | G17: =IFERROR(INDEX(Uren[],MATCH($C17,Uren[Datum],0),G$10),"") -> 00:00:00 | H17: =IFERROR(INDEX(Uren[],MATCH($C17,Uren[Datum],0),H$10),"") -> 09:00:00 | I17: =IFERROR(INDEX(Uren[],MATCH($C17,Uren[Datum],0),I$10),"") -> 9 | J17: =IFERROR(INDEX(Uren[],MATCH($C17,Uren[Datum],0),J$10),"") -> Project2
B18: 8 | C18: 2015-04-08 | D18: =IFERROR(INDEX(Uren[],MATCH($C18,Uren[Datum],0),D$10),"") -> 08:10:00 | E18: =IFERROR(INDEX(Uren[],MATCH($C18,Uren[Datum],0),E$10),"") -> 12:35:00 | F18: =IFERROR(INDEX(Uren[],MATCH($C18,Uren[Datum],0),F$10),"") -> 13:20:00 | G18: =IFERROR(INDEX(Uren[],MATCH($C18,Uren[Datum],0),G$10),"") -> 17:10:00 | H18: =IFERROR(INDEX(Uren[],MATCH($C18,Uren[Datum],0),H$10),"") -> 08:15:00 | I18: =IFERROR(INDEX(Uren[],MATCH($C18,Uren[Datum],0),I$10),"") -> 8.25 | J18: =IFERROR(INDEX(Uren[],MATCH($C18,Uren[Datum],0),J$10),"") -> Project2
B19: 9 | C19: 2015-04-09 | D19: =IFERROR(INDEX(Uren[],MATCH($C19,Uren[Datum],0),D$10),"") -> 08:10:00 | E19: =IFERROR(INDEX(Uren[],MATCH($C19,Uren[Datum],0),E$10),"") -> 12:30:00 | F19: =IFERROR(INDEX(Uren[],MATCH($C19,Uren[Datum],0),F$10),"") -> 13:15:00 | G19: =IFERROR(INDEX(Uren[],MATCH($C19,Uren[Datum],0),G$10),"") -> 17:00:00 | H19: =IFERROR(INDEX(Uren[],MATCH($C19,Uren[Datum],0),H$10),"") -> 08:05:00 | I19: =IFERROR(INDEX(Uren[],MATCH($C19,Uren[Datum],0),I$10),"") -> 8.083333333 | J19: =IFERROR(INDEX(Uren[],MATCH($C19,Uren[Datum],0),J$10),"") -> 0
B20: 10 | C20: 2015-04-10 | D20: =IFERROR(INDEX(Uren[],MATCH($C20,Uren[Datum],0),D$10),"") -> 08:10:00 | E20: =IFERROR(INDEX(Uren[],MATCH($C20,Uren[Datum],0),E$10),"") -> 12:30:00 | F20: =IFERROR(INDEX(Uren[],MATCH($C20,Uren[Datum],0),F$10),"") -> 13:10:00 | G20: =IFERROR(INDEX(Uren[],MATCH($C20,Uren[Datum],0),G$10),"") -> 17:50:00 | H20: =IFERROR(INDEX(Uren[],MATCH($C20,Uren[Datum],0),H$10),"") -> 09:00:00 | I20: =IFERROR(INDEX(Uren[],MATCH($C20,Uren[Datum],0),I$10),"") -> 9 | J20: =IFERROR(INDEX(Uren[],MATCH($C20,Uren[Datum],0),J$10),"") -> 1 uur Project2
B21: 11 | C21: 2015-04-11 | D21: =IFERROR(INDEX(Uren[],MATCH($C21,Uren[Datum],0),D$10),"") -> 00:00:00 | E21: =IFERROR(INDEX(Uren[],MATCH($C21,Uren[Datum],0),E$10),"") -> 00:00:00 | F21: =IFERROR(INDEX(Uren[],MATCH($C21,Uren[Datum],0),F$10),"") -> 00:00:00 | G21: =IFERROR(INDEX(Uren[],MATCH($C21,Uren[Datum],0),G$10),"") -> 00:00:00 | H21: =IFERROR(INDEX(Uren[],MATCH($C21,Uren[Datum],0),H$10),"") -> 00:00:00 | I21: =IFERROR(INDEX(Uren[],MATCH($C21,Uren[Datum],0),I$10),"") -> 0 | J21: =IFERROR(INDEX(Uren[],MATCH($C21,Uren[Datum],0),J$10),"") -> 0
B22: 12 | C22: 2015-04-12 | D22: =IFERROR(INDEX(Uren[],MATCH($C22,Uren[Datum],0),D$10),"") -> 00:00:00 | E22: =IFERROR(INDEX(Uren[],MATCH($C22,Uren[Datum],0),E$10),"") -> 00:00:00 | F22: =IFERROR(INDEX(Uren[],MATCH($C22,Uren[Datum],0),F$10),"") -> 00:00:00 | G22: =IFERROR(INDEX(Uren[],MATCH($C22,Uren[Datum],0),G$10),"") -> 00:00:00 | H22: =IFERROR(INDEX(Uren[],MATCH($C22,Uren[Datum],0),H$10),"") -> 00:00:00 | I22: =IFERROR(INDEX(Uren[],MATCH($C22,Uren[Datum],0),I$10),"") -> 0 | J22: =IFERROR(INDEX(Uren[],MATCH($C22,Uren[Datum],0),J$10),"") -> 0
B23: 13 | C23: 2015-04-13 | D23: =IFERROR(INDEX(Uren[],MATCH($C23,Uren[Datum],0),D$10),"") -> 08:05:00 | E23: =IFERROR(INDEX(Uren[],MATCH($C23,Uren[Datum],0),E$10),"") -> 17:45:00 | F23: =IFERROR(INDEX(Uren[],MATCH($C23,Uren[Datum],0),F$10),"") -> 00:00:00 | G23: =IFERROR(INDEX(Uren[],MATCH($C23,Uren[Datum],0),G$10),"") -> 00:00:00 | H23: =IFERROR(INDEX(Uren[],MATCH($C23,Uren[Datum],0),H$10),"") -> 09:40:00 | I23: =IFERROR(INDEX(Uren[],MATCH($C23,Uren[Datum],0),I$10),"") -> 9.666666667 | J23: =IFERROR(INDEX(Uren[],MATCH($C23,Uren[Datum],0),J$10),"") -> 0
B24: 14 | C24: 2015-04-14 | D24: =IFERROR(INDEX(Uren[],MATCH($C24,Uren[Datum],0),D$10),"") -> 08:05:00 | E24: =IFERROR(INDEX(Uren[],MATCH($C24,Uren[Datum],0),E$10),"") -> 16:50:00 | F24: =IFERROR(INDEX(Uren[],MATCH($C24,Uren[Datum],0),F$10),"") -> 00:00:00 | G24: =IFERROR(INDEX(Uren[],MATCH($C24,Uren[Datum],0),G$10),"") -> 00:00:00 | H24: =IFERROR(INDEX(Uren[],MATCH($C24,Uren[Datum],0),H$10),"") -> 08:45:00 | I24: =IFERROR(INDEX(Uren[],MATCH($C24,Uren[Datum],0),I$10),"") -> 8.75 | J24: =IFERROR(INDEX(Uren[],MATCH($C24,Uren[Datum],0),J$10),"") -> 0
B25: 15 | C25: 2015-04-15 | D25: =IFERROR(INDEX(Uren[],MATCH($C25,Uren[Datum],0),D$10),"") -> 08:00:00 | E25: =IFERROR(INDEX(Uren[],MATCH($C25,Uren[Datum],0),E$10),"") -> 12:35:00 | F25: =IFERROR(INDEX(Uren[],MATCH($C25,Uren[Datum],0),F$10),"") -> 13:15:00 | G25: =IFERROR(INDEX(Uren[],MATCH($C25,Uren[Datum],0),G$10),"") -> 17:20:00 | H25: =IFERROR(INDEX(Uren[],MATCH($C25,Uren[Datum],0),H$10),"") -> 08:40:00 | I25: =IFERROR(INDEX(Uren[],MATCH($C25,Uren[Datum],0),I$10),"") -> 8.666666667 | J25: =IFERROR(INDEX(Uren[],MATCH($C25,Uren[Datum],0),J$10),"") -> 0
B26: 16 | C26: 2015-04-16 | D26: =IFERROR(INDEX(Uren[],MATCH($C26,Uren[Datum],0),D$10),"") -> 08:10:00 | E26: =IFERROR(INDEX(Uren[],MATCH($C26,Uren[Datum],0),E$10),"") -> 12:45:00 | F26: =IFERROR(INDEX(Uren[],MATCH($C26,Uren[Datum],0),F$10),"") -> 13:30:00 | G26: =IFERROR(INDEX(Uren[],MATCH($C26,Uren[Datum],0),G$10),"") -> 17:30:00 | H26: =IFERROR(INDEX(Uren[],MATCH($C26,Uren[Datum],0),H$10),"") -> 08:35:00 | I26: =IFERROR(INDEX(Uren[],MATCH($C26,Uren[Datum],0),I$10),"") -> 8.583333333 | J26: =IFERROR(INDEX(Uren[],MATCH($C26,Uren[Datum],0),J$10),"") -> 0
B27: 17 | C27: 2015-04-17 | D27: =IFERROR(INDEX(Uren[],MATCH($C27,Uren[Datum],0),D$10),"") -> 08:05:00 | E27: =IFERROR(INDEX(Uren[],MATCH($C27,Uren[Datum],0),E$10),"") -> 17:05:00 | F27: =IFERROR(INDEX(Uren[],MATCH($C27,Uren[Datum],0),F$10),"") -> 00:00:00 | G27: =IFERROR(INDEX(Uren[],MATCH($C27,Uren[Datum],0),G$10),"") -> 00:00:00 | H27: =IFERROR(INDEX(Uren[],MATCH($C27,Uren[Datum],0),H$10),"") -> 09:00:00 | I27: =IFERROR(INDEX(Uren[],MATCH($C27,Uren[Datum],0),I$10),"") -> 9 | J27: =IFERROR(INDEX(Uren[],MATCH($C27,Uren[Datum],0),J$10),"") -> 0
B28: 18 | C28: 2015-04-18 | D28: =IFERROR(INDEX(Uren[],MATCH($C28,Uren[Datum],0),D$10),"") -> 00:00:00 | E28: =IFERROR(INDEX(Uren[],MATCH($C28,Uren[Datum],0),E$10),"") -> 00:00:00 | F28: =IFERROR(INDEX(Uren[],MATCH($C28,Uren[Datum],0),F$10),"") -> 00:00:00 | G28: =IFERROR(INDEX(Uren[],MATCH($C28,Uren[Datum],0),G$10),"") -> 00:00:00 | H28: =IFERROR(INDEX(Uren[],MATCH($C28,Uren[Datum],0),H$10),"") -> 00:00:00 | I28: =IFERROR(INDEX(Uren[],MATCH($C28,Uren[Datum],0),I$10),"") -> 0 | J28: =IFERROR(INDEX(Uren[],MATCH($C28,Uren[Datum],0),J$10),"") -> 0
B29: 19 | C29: 2015-04-19 | D29: =IFERROR(INDEX(Uren[],MATCH($C29,Uren[Datum],0),D$10),"") -> 00:00:00 | E29: =IFERROR(INDEX(Uren[],MATCH($C29,Uren[Datum],0),E$10),"") -> 00:00:00 | F29: =IFERROR(INDEX(Uren[],MATCH($C29,Uren[Datum],0),F$10),"") -> 00:00:00 | G29: =IFERROR(INDEX(Uren[],MATCH($C29,Uren[Datum],0),G$10),"") -> 00:00:00 | H29: =IFERROR(INDEX(Uren[],MATCH($C29,Uren[Datum],0),H$10),"") -> 00:00:00 | I29: =IFERROR(INDEX(Uren[],MATCH($C29,Uren[Datum],0),I$10),"") -> 0 | J29: =IFERROR(INDEX(Uren[],MATCH($C29,Uren[Datum],0),J$10),"") -> 0
B30: 20 | C30: 2015-04-20 | D30: =IFERROR(INDEX(Uren[],MATCH($C30,Uren[Datum],0),D$10),"") -> 08:15:00 | E30: =IFERROR(INDEX(Uren[],MATCH($C30,Uren[Datum],0),E$10),"") -> 12:15:00 | F30: =IFERROR(INDEX(Uren[],MATCH($C30,Uren[Datum],0),F$10),"") -> 13:00:00 | G30: =IFERROR(INDEX(Uren[],MATCH($C30,Uren[Datum],0),G$10),"") -> 17:15:00 | H30: =IFERROR(INDEX(Uren[],MATCH($C30,Uren[Datum],0),H$10),"") -> 08:15:00 | I30: =IFERROR(INDEX(Uren[],MATCH($C30,Uren[Datum],0),I$10),"") -> 8.25 | J30: =IFERROR(INDEX(Uren[],MATCH($C30,Uren[Datum],0),J$10),"") -> 0
B31: 21 | C31: 2015-04-21 | D31: =IFERROR(INDEX(Uren[],MATCH($C31,Uren[Datum],0),D$10),"") -> 08:05:00 | E31: =IFERROR(INDEX(Uren[],MATCH($C31,Uren[Datum],0),E$10),"") -> 12:30:00 | F31: =IFERROR(INDEX(Uren[],MATCH($C31,Uren[Datum],0),F$10),"") -> 13:00:00 | G31: =IFERROR(INDEX(Uren[],MATCH($C31,Uren[Datum],0),G$10),"") -> 17:20:00 | H31: =IFERROR(INDEX(Uren[],MATCH($C31,Uren[Datum],0),H$10),"") -> 08:45:00 | I31: =IFERROR(INDEX(Uren[],MATCH($C31,Uren[Datum],0),I$10),"") -> 8.75 | J31: =IFERROR(INDEX(Uren[],MATCH($C31,Uren[Datum],0),J$10),"") -> 0
B32: 22 | C32: 2015-04-22 | D32: =IFERROR(INDEX(Uren[],MATCH($C32,Uren[Datum],0),D$10),"") -> 08:00:00 | E32: =IFERROR(INDEX(Uren[],MATCH($C32,Uren[Datum],0),E$10),"") -> 17:35:00 | F32: =IFERROR(INDEX(Uren[],MATCH($C32,Uren[Datum],0),F$10),"") -> 00:00:00 | G32: =IFERROR(INDEX(Uren[],MATCH($C32,Uren[Datum],0),G$10),"") -> 00:00:00 | H32: =IFERROR(INDEX(Uren[],MATCH($C32,Uren[Datum],0),H$10),"") -> 09:35:00 | I32: =IFERROR(INDEX(Uren[],MATCH($C32,Uren[Datum],0),I$10),"") -> 9.583333333 | J32: =IFERROR(INDEX(Uren[],MATCH($C32,Uren[Datum],0),J$10),"") -> 0
B33: 23 | C33: 2015-04-23 | D33: =IFERROR(INDEX(Uren[],MATCH($C33,Uren[Datum],0),D$10),"") -> 08:10:00 | E33: =IFERROR(INDEX(Uren[],MATCH($C33,Uren[Datum],0),E$10),"") -> 12:40:00 | F33: =IFERROR(INDEX(Uren[],MATCH($C33,Uren[Datum],0),F$10),"") -> 13:10:00 | G33: =IFERROR(INDEX(Uren[],MATCH($C33,Uren[Datum],0),G$10),"") -> 17:50:00 | H33: =IFERROR(INDEX(Uren[],MATCH($C33,Uren[Datum],0),H$10),"") -> 09:10:00 | I33: =IFERROR(INDEX(Uren[],MATCH($C33,Uren[Datum],0),I$10),"") -> 9.166666667 | J33: =IFERROR(INDEX(Uren[],MATCH($C33,Uren[Datum],0),J$10),"") -> 0
B34: 24 | C34: 2015-04-24 | D34: =IFERROR(INDEX(Uren[],MATCH($C34,Uren[Datum],0),D$10),"") -> 00:00:00 | E34: =IFERROR(INDEX(Uren[],MATCH($C34,Uren[Datum],0),E$10),"") -> 00:00:00 | F34: =IFERROR(INDEX(Uren[],MATCH($C34,Uren[Datum],0),F$10),"") -> 00:00:00 | G34: =IFERROR(INDEX(Uren[],MATCH($C34,Uren[Datum],0),G$10),"") -> 00:00:00 | H34: =IFERROR(INDEX(Uren[],MATCH($C34,Uren[Datum],0),H$10),"") -> 00:00:00 | I34: =IFERROR(INDEX(Uren[],MATCH($C34,Uren[Datum],0),I$10),"") -> 0 | J34: =IFERROR(INDEX(Uren[],MATCH($C34,Uren[Datum],0),J$10),"") -> 0
B35: 25 | C35: 2015-04-25 | D35: =IFERROR(INDEX(Uren[],MATCH($C35,Uren[Datum],0),D$10),"") -> 00:00:00 | E35: =IFERROR(INDEX(Uren[],MATCH($C35,Uren[Datum],0),E$10),"") -> 00:00:00 | F35: =IFERROR(INDEX(Uren[],MATCH($C35,Uren[Datum],0),F$10),"") -> 00:00:00 | G35: =IFERROR(INDEX(Uren[],MATCH($C35,Uren[Datum],0),G$10),"") -> 00:00:00 | H35: =IFERROR(INDEX(Uren[],MATCH($C35,Uren[Datum],0),H$10),"") -> 00:00:00 | I35: =IFERROR(INDEX(Uren[],MATCH($C35,Uren[Datum],0),I$10),"") -> 0 | J35: =IFERROR(INDEX(Uren[],MATCH($C35,Uren[Datum],0),J$10),"") -> 0
B36: 26 | C36: 2015-04-26 | D36: =IFERROR(INDEX(Uren[],MATCH($C36,Uren[Datum],0),D$10),"") -> 00:00:00 | E36: =IFERROR(INDEX(Uren[],MATCH($C36,Uren[Datum],0),E$10),"") -> 00:00:00 | F36: =IFERROR(INDEX(Uren[],MATCH($C36,Uren[Datum],0),F$10),"") -> 00:00:00 | G36: =IFERROR(INDEX(Uren[],MATCH($C36,Uren[Datum],0),G$10),"") -> 00:00:00 | H36: =IFERROR(INDEX(Uren[],MATCH($C36,Uren[Datum],0),H$10),"") -> 00:00:00 | I36: =IFERROR(INDEX(Uren[],MATCH($C36,Uren[Datum],0),I$10),"") -> 0 | J36: =IFERROR(INDEX(Uren[],MATCH($C36,Uren[Datum],0),J$10),"") -> 0
B37: 27 | C37: 2015-04-27 | D37: =IFERROR(INDEX(Uren[],MATCH($C37,Uren[Datum],0),D$10),"") -> 00:00:00 | E37: =IFERROR(INDEX(Uren[],MATCH($C37,Uren[Datum],0),E$10),"") -> 00:00:00 | F37: =IFERROR(INDEX(Uren[],MATCH($C37,Uren[Datum],0),F$10),"") -> 00:00:00 | G37: =IFERROR(INDEX(Uren[],MATCH($C37,Uren[Datum],0),G$10),"") -> 00:00:00 | H37: =IFERROR(INDEX(Uren[],MATCH($C37,Uren[Datum],0),H$10),"") -> 00:00:00 | I37: =IFERROR(INDEX(Uren[],MATCH($C37,Uren[Datum],0),I$10),"") -> 0 | J37: =IFERROR(INDEX(Uren[],MATCH($C37,Uren[Datum],0),J$10),"") -> Koningsdag
B38: 28 | C38: =IF(MONTH($D$5+B38-1)=MONTH($D$5),$D$5+B38-1,"") -> 2015-04-28 | D38: =IFERROR(INDEX(Uren[],MATCH($C38,Uren[Datum],0),D$10),"") -> 08:05:00 | E38: =IFERROR(INDEX(Uren[],MATCH($C38,Uren[Datum],0),E$10),"") -> 12:30:00 | F38: =IFERROR(INDEX(Uren[],MATCH($C38,Uren[Datum],0),F$10),"") -> 13:00:00 | G38: =IFERROR(INDEX(Uren[],MATCH($C38,Uren[Datum],0),G$10),"") -> 17:20:00 | H38: =IFERROR(INDEX(Uren[],MATCH($C38,Uren[Datum],0),H$10),"") -> 08:45:00 | I38: =IFERROR(INDEX(Uren[],MATCH($C38,Uren[Datum],0),I$10),"") -> 8.75 | J38: =IFERROR(INDEX(Uren[],MATCH($C38,Uren[Datum],0),J$10),"") -> 0
B39: 29 | C39: =IF(MONTH($D$5+B39-1)=MONTH($D$5),$D$5+B39-1,"") -> 2015-04-29 | D39: =IFERROR(INDEX(Uren[],MATCH($C39,Uren[Datum],0),D$10),"") -> 08:15:00 | E39: =IFERROR(INDEX(Uren[],MATCH($C39,Uren[Datum],0),E$10),"") -> 12:15:00 | F39: =IFERROR(INDEX(Uren[],MATCH($C39,Uren[Datum],0),F$10),"") -> 13:00:00 | G39: =IFERROR(INDEX(Uren[],MATCH($C39,Uren[Datum],0),G$10),"") -> 17:15:00 | H39: =IFERROR(INDEX(Uren[],MATCH($C39,Uren[Datum],0),H$10),"") -> 08:15:00 | I39: =IFERROR(INDEX(Uren[],MATCH($C39,Uren[Datum],0),I$10),"") -> 8.25 | J39: =IFERROR(INDEX(Uren[],MATCH($C39,Uren[Datum],0),J$10),"") -> 0
B40: 30 | C40: =IF(MONTH($D$5+B40-1)=MONTH($D$5),$D$5+B40-1,"") -> 2015-04-30 | D40: =IFERROR(INDEX(Uren[],MATCH($C40,Uren[Datum],0),D$10),"") -> 08:10:00 | E40: =IFERROR(INDEX(Uren[],MATCH($C40,Uren[Datum],0),E$10),"") -> 12:45:00 | F40: =IFERROR(INDEX(Uren[],MATCH($C40,Uren[Datum],0),F$10),"") -> 13:15:00 | G40: =IFERROR(INDEX(Uren[],MATCH($C40,Uren[Datum],0),G$10),"") -> 17:45:00 | H40: =IFERROR(INDEX(Uren[],MATCH($C40,Uren[Datum],0),H$10),"") -> 09:05:00 | I40: =IFERROR(INDEX(Uren[],MATCH($C40,Uren[Datum],0),I$10),"") -> 9.083333333 | J40: =IFERROR(INDEX(Uren[],MATCH($C40,Uren[Datum],0),J$10),"") -> 0
B41: 31 | C41: =IF(MONTH($D$5+B41-1)=MONTH($D$5),$D$5+B41-1,"") ->  | D41: =IFERROR(INDEX(Uren[],MATCH($C41,Uren[Datum],0),D$10),"") ->  | E41: =IFERROR(INDEX(Uren[],MATCH($C41,Uren[Datum],0),E$10),"") ->  | F41: =IFERROR(INDEX(Uren[],MATCH($C41,Uren[Datum],0),F$10),"") ->  | G41: =IFERROR(INDEX(Uren[],MATCH($C41,Uren[Datum],0),G$10),"") ->  | H41: =IFERROR(INDEX(Uren[],MATCH($C41,Uren[Datum],0),H$10),"") ->  | I41: =IFERROR(INDEX(Uren[],MATCH($C41,Uren[Datum],0),I$10),"") ->  | J41: =IFERROR(INDEX(Uren[],MATCH($C41,Uren[Datum],0),J$10),"") -> 
B42: Totaal: | H42: =SUM(H11:H41) -> 7.340277778 | I42: =SUM(I11:I41) -> 176.1666667
B45: Handtekening medewerker | F45: Handtekening opdrachtgever
F46: Naam in blokletters
